bitfinex-derivatives/quotes_ETHF0:USTF0_20250217
["timestamp","ask_amount","ask_price","bid_price","bid_amount"]
[1739753445307,0.75091,2663.1,2662.9,0.75094]
[1739753445609,2.44209,2663.2,2662.7,0.29932563]
[1739753445800,2.44208,2663.2,2662.7,1.87749]
[1739753446000,1.6912,2663.2,2663.0,0.7509]
[1739753446200,0.75089,2663.1,2663.0,0.7509]
[1739753446708,1.6912,2663.2,2663.0,0.7509]
[1739753447010,1.6912,2663.2,2663.1,0.75089]
[1739753447205,4.1672,2663.2,2663.1,0.75089]
[1739753450007,4.91806,2663.2,2663.1,0.75089]
[1739753450196,4.1672,2663.2,2663.1,0.75089]
[1739753450709,4.91806,2663.2,2663.1,0.75089]
[1739753451610,4.1672,2663.2,2662.7,1.87749]
[1739753451809,0.75091,2663.1,2663.0,0.75091]
[1739753452013,4.91808,2663.2,2663.1,0.75089]
[1739753452209,4.1672,2663.2,2662.7,1.87749]
[1739753452518,0.75094,2663.0,2662.9,0.75094]
[1739753452812,0.75093,2663.0,2662.9,0.75093]
[1739753453312,0.75094,2663.0,2662.9,0.75094]
[1739753453814,4.1672,2663.2,2662.9,0.75094]
[1739753454112,4.1672,2663.2,2662.6,1.1121]
[1739753454113,0.75091,2663.1,2663.0,0.7509]
[1739753454312,4.1672,2663.2,2663.1,0.75089]
[1739753455808,1.6912,2663.2,2663.1,0.75089]
[1739753456014,3.2078,2663.3,2662.8,3.2078]
[1739753456315,5.6838,2663.3,2663.2,0.75086]
[1739753456506,2.476,2663.3,2663.2,0.75086]
[1739753457213,0.00562894,2663.5,2663.4,0.75081]
[1739753460515,2.476,2663.8,2663.7,0.75072]
[1739753461212,5.6838,2663.9,2663.8,0.75069]
[1739753462313,0.75072,2663.7,2663.6,0.00562894]
[1739753463216,1.6954,2663.8,2663.6,0.00562894]
[1739753463411,5.6838,2663.9,2663.6,0.00562894]
[1739753463614,5.6838,2663.9,2663.8,0.75069]
[1739753466819,2.476,2663.9,2663.8,0.75069]
[1739753468521,0.75071,2663.8,2663.6,0.75635894]
[1739753468820,0.75072,2663.7,2663.6,0.00562894]
[1739753469009,6.2533,2663.9,2663.8,0.75069]
[1739753469211,5.6838,2663.9,2663.8,0.75069]
[1739753470517,3.2078,2663.9,2663.8,0.75069]
[1739753470714,2.48162894,2664.1,2664.0,0.75064]
[1739753471825,2.48162894,2664.1,2664.0,1.35084]
[1739753474721,0.00562894,2664.1,2664.0,1.35084]
[1739753477915,0.00562894,2664.1,2664.0,4.55864]
[1739753482225,2.475,2664.5,2664.0,3.808]
[1739753482424,2.475,2664.5,2664.4,0.75052]
[1739753483018,1.699,2664.6,2664.5,0.7505]
[1739753483328,2.44947,2664.6,2664.5,0.7505]
[1739753483719,1.699,2664.6,2664.5,0.7505]
[1739753485128,0.00562894,2664.8,2664.3,0.29509645]
[1739753485325,3.04732894,2664.8,2664.7,0.75044]
[1739753485719,3.79773894,2664.8,2664.7,0.75044]
[1739753486026,3.04732894,2664.8,2664.7,0.75044]
[1739753486418,3.79773894,2664.8,2664.7,0.75044]
[1739753486823,3.79773894,2664.8,2664.6,0.75045]
[1739753486824,0.75046,2664.7,2664.6,0.75045]
[1739753487519,3.79774894,2664.8,2664.7,0.75044]
[1739753487728,3.04732894,2664.8,2664.7,0.75044]
[1739753489027,3.04732894,2664.8,2664.5,0.5566]
[1739753489330,0.75045,2664.7,2664.6,0.75044]
[1739753489731,3.79775894,2664.8,2664.7,0.75044]
[1739753490030,3.04732894,2664.8,2664.7,0.75044]
[1739753490421,3.79773894,2664.8,2664.7,0.75044]
[1739753491129,3.04732894,2664.8,2664.7,0.75044]
[1739753491330,0.75047,2664.7,2664.6,0.75046]
[1739753491525,3.04732894,2664.8,2664.5,0.5566]
[1739753491828,3.04732894,2664.8,2664.7,0.75044]
[1739753492224,3.79773894,2664.8,2664.7,0.75044]
[1739753493035,3.04732894,2664.8,2664.7,0.75044]
[1739753493435,3.04732894,2664.8,2664.6,0.75044]
[1739753493436,0.75046,2664.7,2664.6,0.75044]
[1739753494133,3.04732894,2664.8,2664.5,0.5566]
[1739753494334,3.04732894,2664.8,2664.7,0.75044]
[1739753495536,0.57232894,2664.8,2664.7,0.75044]
[1739753496237,1.32273894,2664.8,2664.7,0.75044]
[1739753497952,0.57232894,2664.8,2664.7,0.75044]
[1739753498250,1.32273894,2664.8,2664.7,0.75044]
[1739753498949,0.57232894,2664.8,2664.7,0.75044]
[1739753499144,1.32273894,2664.8,2664.7,0.75044]
[1739753499648,0.57232894,2664.8,2664.7,0.75044]
[1739753500048,1.32273894,2664.8,2664.7,0.75044]
[1739753500445,0.57232894,2664.8,2664.7,0.75044]
[1739753500847,0.00562894,2664.8,2664.7,0.75044]
[1739753503756,0.00562894,2664.8,2664.7,3.41013442]
[1739753506150,0.00562894,2664.8,2664.7,0.75044]
[1739753509458,0.75604894,2664.8,2664.5,0.5566]
[1739753509654,0.00562894,2664.8,2664.7,0.75044]
[1739753510260,0.75605894,2664.8,2664.6,0.75046]
[1739753510462,0.00562894,2664.8,2664.5,0.5566]
[1739753510754,0.588,2664.7,2664.6,0.75047]
[1739753511953,0.00562894,2664.8,2664.7,0.75044]
[1739753520368,3.2078,2665.2,2665.1,0.75033]
[1739753520763,3.9581,2665.2,2665.1,0.75033]
[1739753521665,0.75034,2665.1,2665.0,0.75035]
[1739753523061,3.2078,2665.2,2664.8,0.5945]
[1739753523263,3.2078,2665.2,2665.1,0.75033]
[1739753523570,3.9581,2665.2,2665.1,0.75033]
[1739753523763,3.2078,2665.2,2665.1,0.75033]
[1739753524370,3.9581,2665.2,2665.1,0.75033]
[1739753524763,3.2078,2665.2,2665.1,0.75033]
[1739753526267,3.9581,2665.2,2665.1,0.75033]
[1739753526464,3.2078,2665.2,2665.1,0.75033]
[1739753528571,4.94398894,2665.4,2665.1,0.75033]
[1739753528572,1.72072894,2665.4,2665.1,0.75033]
[1739753528768,1.72072894,2665.4,2665.3,0.75027]
[1739753528769,0.58502894,2665.4,2665.3,0.75027]
[1739753528967,0.00562894,2665.4,2665.3,0.75027]
[1739753531366,0.55242894,2665.4,2665.3,0.75027]
[1739753533073,0.55242894,2665.4,2665.0,0.00562894]
[1739753533271,1.33048,2665.3,2665.2,0.7503]
[1739753533467,0.5802,2665.3,2665.2,0.7503]
[1739753533880,0.75031,2665.2,2665.1,0.75031]
[1739753534068,1.32401,2665.2,2665.1,0.75031]
[1739753534374,1.32401,2665.2,2665.0,1.32845894]
[1739753534774,0.5737,2665.2,2665.1,0.75033]
[1739753536178,0.75033,2665.1,2665.0,0.75597894]
[1739753536477,4.5318,2665.2,2665.1,0.75033]
[1739753536776,0.75033,2665.1,2665.0,1.31557894]
[1739753536971,0.75033,2665.1,2665.0,0.00562894]
[1739753540281,6.75033,2665.1,2665.0,0.00562894]
[1739753540474,0.75049,2664.6,2664.4,1.31012]
[1739753540778,3.95829,2664.6,2664.5,0.7505]
[1739753540973,3.95829,2664.6,2664.4,1.31011]
[1739753541174,0.5449,2664.5,2664.4,1.31011]
[1739753544179,3.7802,2664.6,2664.5,0.7505]
[1739753545971,4.53067,2664.6,2664.5,0.7505]
[1739753547079,3.7802,2664.6,2664.5,0.7505]
[1739753547380,2.472,2664.7,2664.6,0.75047]
[1739753548882,0.75042,2664.8,2664.7,0.75044]
[1739753549485,7.3412,2664.9,2664.4,3.21929442]
[1739753549679,7.3412,2664.9,2664.8,0.75041]
[1739753550178,8.09158,2664.9,2664.8,0.75041]
[1739753550679,7.3412,2664.9,2664.8,0.75041]
[1739753552087,2.472,2665.0,2664.9,0.75038]
[1739753552789,0.5441,2665.3,2665.2,0.7503]
[1739753552987,3.0161,2665.3,2665.2,0.7503]
[1739753553488,2.47762894,2665.4,2665.3,0.75027]
[1739753554087,0.00562894,2665.4,2665.3,0.75027]
[1739753560088,0.00562894,2665.4,2665.3,6.61776442]
[1739753560292,4.9973,2666.1,2666.0,0.75007]
[1739753560491,7.4683,2666.1,2666.0,0.75007]
[1739753561501,3.2078,2666.1,2666.0,0.75007]
[1739753561705,0.75562894,2666.3,2665.9,0.5455]
[1739753561706,2.47662894,2666.3,2665.9,0.5455]
[1739753562000,2.47662894,2666.3,2666.2,0.75002]
[1739753563193,2.47662894,2666.3,2665.9,0.5455]
[1739753563804,2.47662894,2666.3,2666.2,0.75002]
[1739753564605,3.22661894,2666.3,2666.2,0.75002]
[1739753566004,2.47662894,2666.3,2666.2,0.75002]
[1739753567104,0.00562894,2666.3,2666.2,0.75002]
[1739753569313,40.80562894,2666.3,2666.2,0.75002]
[1739753569806,0.00562894,2666.3,2666.2,0.75002]
[1739753573011,0.00562894,2666.3,2666.2,1.29862]
[1739753584219,0.00562894,2666.3,2666.2,3.95831442]
[1739753585618,0.00562894,2666.3,2666.2,11.94785399]
[1739753589419,1.792,2666.6,2666.5,0.74993]
[1739753589624,3.2078,2666.8,2666.7,0.74988]
[1739753591327,1.72992894,2667.0,2666.9,0.74982]
[1739753594424,0.57082894,2667.0,2666.9,0.74982]
[1739753595627,1.32061894,2667.0,2666.9,0.74982]
[1739753595825,0.57082894,2667.0,2666.9,0.74982]
[1739753596726,1.15432894,2667.0,2666.9,0.74982]
[1739753596931,0.00562894,2667.0,2666.9,0.74982]
[1739753597229,0.00562894,2667.0,2666.9,1.30122]
[1739753598423,0.00562894,2667.0,2666.9,0.74982]
[1739753603032,0.00562894,2667.0,2666.7,0.5796]
[1739753603235,0.00562894,2667.0,2666.6,0.5731]
[1739753603434,0.00562894,2667.0,2666.9,0.74982]
[1739753609129,0.00562894,2667.0,2666.9,8.4424917]
[1739753609335,3.2078,2667.5,2667.4,0.74968]
[1739753609937,3.7995,2667.5,2667.4,0.74741559]
[1739753611545,3.7995,2667.5,2667.4,0.74968]
[1739753612740,3.7995,2667.5,2667.2,0.00562894]
[1739753612949,0.5805,2667.4,2667.2,0.75534894]
[1739753613148,1.1315,2667.4,2667.3,0.74971]
[1739753613349,1.1315,2667.4,2667.2,0.00562894]
[1739753613548,1.88119,2667.4,2667.2,0.75535894]
[1739753613849,1.1315,2667.4,2667.2,0.00562894]
[1739753614051,1.8812,2667.4,2667.2,0.75534894]
[1739753614241,0.74971,2667.3,2667.2,0.00562894]
[1739753614946,0.74971,2667.3,2667.2,0.75536894]
[1739753615142,0.74971,2667.3,2667.2,0.00562894]
[1739753616245,0.74971,2667.3,2667.2,0.75536894]
[1739753617258,0.74971,2667.3,2667.2,0.00562894]
[1739753618746,0.74971,2667.3,2667.2,0.75536894]
[1739753618954,4.3482,2667.4,2667.3,0.74971]
[1739753619150,0.74971,2667.3,2667.2,0.75534894]
[1739753622951,3.5985,2667.4,2667.3,0.74971]
[1739753623353,3.5985,2667.4,2667.3,1.31591]
[1739753623949,0.5805,2667.4,2667.3,1.31591]
[1739753624151,0.5805,2667.4,2667.3,1.90601]
[1739753625256,3.7995,2667.5,2667.3,1.1563]
[1739753625460,3.7995,2667.5,2667.4,0.74968]
[1739753625650,3.2078,2667.5,2667.4,0.74968]
[1739753626051,3.2078,2667.5,2667.4,3.40937442]
[1739753626649,0.00562894,2667.7,2667.6,0.74962]
[1739753628866,0.00562894,2667.7,2667.6,1.04288225]
[1739753630055,0.00562894,2667.7,2667.6,8.6927545]
[1739753630663,3.2078,2667.9,2667.6,7.9431345]
[1739753630956,3.2078,2667.9,2667.8,3.40926442]
[1739753631558,3.2078,2667.9,2667.8,3.96446442]
[1739753632567,0.00375262,2668.1,2668.0,0.74951]
[1739753642761,0.00375262,2668.1,2668.0,1.93582338]
[1739753644253,0.00375262,2668.1,2667.7,5.66627]
[1739753644254,0.00375262,2668.1,2667.7,0.5845]
[1739753644466,0.74957,2667.8,2667.7,0.5845]
[1739753644663,1.18631338,2668.0,2667.5,0.571]
[1739753644863,0.74965,2667.5,2667.4,1.74231338]
[1739753645062,0.74965,2667.5,2667.4,1.18631338]
[1739753645264,1.32415,2667.5,2667.4,1.18631338]
[1739753645463,0.5745,2667.5,2667.4,1.18631338]
[1739753645663,0.5745,2667.5,2667.4,1.93599338]
[1739753646369,3.2078,2667.6,2667.5,0.74965]
[1739753646669,1.1104,2667.7,2667.6,0.74962]
[1739753647168,0.5745,2667.9,2667.8,0.74957]
[1739753649469,1.32404,2667.9,2667.7,1.84987]
[1739753649671,1.32404,2667.9,2667.7,1.1003]
[1739753649970,0.5745,2667.9,2667.7,1.84988]
[1739753650166,1.32404,2667.9,2667.7,1.1003]
[1739753650357,0.74957,2667.8,2667.7,0.5522]
[1739753651073,0.74957,2667.8,2667.6,0.74962]
[1739753652274,4.53185,2667.9,2667.7,0.74959]
[1739753652474,4.53185,2667.9,2667.5,3.4816]
[1739753652675,0.74957,2667.8,2667.7,0.74958]
[1739753652972,0.74959,2667.8,2667.7,0.74958]
[1739753653165,3.7823,2667.9,2667.5,3.4816]
[1739753653368,0.74961,2667.7,2667.6,0.74962]
[1739753653974,3.7823,2667.9,2667.5,2.915]
[1739753654168,4.52472,2667.6,2667.5,2.915]
[1739753654470,3.7751,2667.6,2667.5,0.74965]
[1739753655666,4.3363,2667.6,2667.5,0.74965]
[1739753656072,4.3363,2667.6,2667.3,2.65156518]
[1739753656264,1.29807,2667.5,2667.3,3.40125518]
[1739753656465,0.5484,2667.5,2667.4,8.52926091]
[1739753658162,1.29805,2667.5,2667.4,8.52926091]
[1739753658362,0.5484,2667.5,2667.4,8.52926091]
[1739753661879,1.1285,2667.6,2667.5,0.74965]
[1739753662783,3.2078,2667.8,2667.7,0.7496]
[1739753663584,1.1744,2668.0,2667.7,0.7496]
[1739753663776,1.1744,2668.0,2667.9,0.74954]
[1739753664372,5.67555262,2668.1,2668.0,0.74951]
[1739753664373,3.21155262,2668.1,2668.0,0.74951]
[1739753665076,3.21155262,2668.1,2667.8,1.87184]
[1739753665276,1.92111,2668.0,2667.8,1.1223]
[1739753665581,1.1716,2668.0,2667.9,7.93482958]
[1739753665974,1.1716,2668.0,2667.9,8.68436958]
[1739753667178,1.92111,2668.0,2667.9,8.68436958]
[1739753667382,1.92111,2668.0,2667.9,7.93482958]
[1739753667774,1.1716,2668.0,2667.9,8.68436958]
[1739753668276,1.92111,2668.0,2667.9,8.68436958]
[1739753668672,1.1716,2668.0,2667.9,8.68436958]
[1739753669380,0.5751,2668.0,2667.9,8.68436958]
[1739753672477,3.21155262,2668.1,2668.0,0.74951]
[1739753672684,3.21155262,2668.1,2668.0,1.32141]
[1739753673278,3.96103262,2668.1,2668.0,1.32141]
[1739753674280,0.74954,2667.9,2667.8,1.31136]
[1739753674586,0.74954,2668.0,2667.9,8.75063295]
[1739753675386,3.21155262,2668.1,2667.8,0.5618]
[1739753675590,3.96104262,2668.1,2668.0,0.74951]
[1739753676684,3.96103262,2668.1,2668.0,0.74951]
[1739753678181,3.21155262,2668.1,2668.0,0.74951]
[1739753678683,3.21155262,2668.1,2668.0,1.30841]
[1739753682683,0.00375262,2668.1,2668.0,1.30841]
[1739753683090,0.00375262,2668.1,2668.0,2.49485411]
[1739753683282,3.2078,2668.4,2668.3,0.74943]
[1739753683485,3.2078,2668.4,2668.3,1.93587411]
[1739753684584,3.2078,2668.4,2668.3,2.52327411]
[1739753685387,0.5479,2668.6,2668.5,0.74937]
[1739753685583,3.2078,2668.7,2668.5,1.18644411]
[1739753685892,3.2078,2668.7,2668.6,0.74934]
[1739753686089,3.2078,2668.7,2668.6,1.31054]
[1739753687786,3.2078,2668.7,2668.5,0.74936]
[1739753688093,0.5834,2668.6,2668.5,0.74936]
[1739753701903,0.74932,2668.7,2668.6,0.74932]
[1739753702203,1.34222,2668.7,2668.6,0.74932]
[1739753702400,0.5929,2668.7,2668.6,0.74932]
[1739753702604,3.2078,2669.4,2669.3,0.74913]
[1739753702800,3.7628,2669.7,2669.3,2.64960514]
[1739753703001,0.5694,2669.6,2669.5,0.74908]
[1739753703197,0.555,2669.7,2669.3,2.64960514]
[1739753703405,1.1135,2669.9,2669.6,2.64960514]
[1739753703703,3.2078,2670.3,2670.1,0.7489]
[1739753704105,3.2078,2670.3,2669.9,2.64960514]
[1739753704305,4.1305,2670.5,2669.7,3.79802]
[1739753704306,3.2078,2670.0,2669.7,3.79802]
[1739753704609,4.1305,2670.5,2669.8,8.44432926]
[1739753704610,0.578,2669.9,2669.8,8.44432926]
[1739753705304,0.578,2669.9,2669.8,7.69533926]
[1739753705508,0.578,2669.9,2669.8,8.44434926]
[1739753706605,0.578,2669.9,2669.6,2.64960514]
[1739753706906,0.5439,2669.8,2669.3,2.64960514]
[1739753707109,0.5439,2669.8,2669.6,0.74905]
[1739753707303,0.5439,2669.8,2669.5,0.74908]
[1739753707507,1.29292,2669.8,2669.5,0.74908]
[1739753707901,0.5439,2669.8,2669.3,10.91340657]
[1739753708208,0.5439,2669.8,2669.6,0.74906]
[1739753708609,0.5439,2669.8,2669.5,0.74908]
[1739753708808,3.95686,2669.7,2669.3,10.91340657]
[1739753709008,3.2078,2669.7,2669.2,0.00562894]
[1739753709212,0.74914,2669.4,2669.2,0.00562894]
[1739753709509,0.5681,2669.3,2669.2,0.00562894]
[1739753710013,1.31725,2669.3,2669.2,0.00562894]
[1739753710599,1.1386,2669.3,2669.2,0.00562894]
[1739753711403,0.5681,2669.3,2669.2,0.75480894]
[1739753712313,0.5681,2669.3,2669.2,0.00562894]
[1739753712704,0.5681,2669.3,2669.2,0.75480894]
[1739753717513,3.7759,2669.3,2669.2,0.75480894]
[1739753717710,3.7759,2669.3,2669.2,0.00562894]
[1739753718008,4.52505,2669.3,2669.2,0.00562894]
[1739753718818,4.52505,2669.3,2669.2,0.75480894]
[1739753719012,4.52505,2669.3,2669.2,0.00562894]
[1739753729829,4.52505,2669.3,2669.2,0.75479894]
[1739753730025,4.52505,2669.3,2669.2,0.00562894]
[1739753731432,4.52505,2669.3,2669.2,0.75479894]
[1739753731834,4.52505,2669.3,2669.2,0.00562894]
[1739753732735,4.52505,2669.3,2669.2,0.75479894]
[1739753733132,4.52505,2669.3,2669.2,0.00562894]
[1739753733735,3.7759,2669.3,2669.2,0.00562894]
[1739753734127,4.52505,2669.3,2669.2,0.75479894]
[1739753735626,3.95695,2669.3,2669.2,0.75479894]
[1739753736140,3.2078,2669.3,2669.2,0.75479894]
[1739753736529,0.5768,2669.7,2669.6,0.74906]
[1739753736733,3.0368,2669.7,2669.6,0.74906]
[1739753737131,0.5768,2669.7,2669.6,0.74906]
[1739753737332,5.6678,2669.8,2669.3,4.31360514]
[1739753737638,5.6678,2669.8,2669.7,0.74903]
[1739753738136,3.2078,2669.8,2669.7,0.74903]
[1739753738339,0.74903,2669.7,2669.6,0.74906]
[1739753738640,0.74907,2669.6,2669.5,0.74908]
[1739753738829,0.5786,2669.7,2669.5,0.74908]
[1739753739037,0.74906,2669.6,2669.5,0.74908]
[1739753739229,0.74906,2669.6,2669.5,0.74909]
[1739753739542,0.5786,2669.7,2669.4,7.93304023]
[1739753739736,0.74909,2669.5,2669.4,7.93304023]
[1739753740138,0.74909,2669.5,2669.4,8.68216023]
[1739753740340,3.95689,2669.5,2669.4,7.93304023]
[1739753740542,4.51949,2669.5,2669.4,7.93304023]
[1739753740937,3.7704,2669.5,2669.3,0.5439]
[1739753741242,0.74912,2669.4,2669.3,0.5439]
[1739753741446,3.7704,2669.5,2669.3,0.5439]
[1739753741737,4.51951,2669.5,2669.3,1.29303]
[1739753742136,0.74912,2669.4,2669.3,1.29303]
[1739753742536,4.5195,2669.5,2669.4,0.74912]
[1739753742738,3.7704,2669.5,2669.4,0.74912]
[1739753743246,2.46,2669.7,2669.6,0.74906]
[1739753743438,3.20905,2669.7,2669.5,0.74908]
[1739753743638,3.77715,2669.7,2669.3,0.5439]
[1739753743841,3.77715,2669.7,2669.5,0.74907]
[1739753744239,3.0281,2669.7,2669.3,0.5439]
[1739753744647,1.31715,2669.7,2669.3,0.5439]
[1739753744848,0.5681,2669.7,2669.3,0.5439]
[1739753745159,0.7491,2669.5,2669.3,1.29303]
[1739753745346,0.7491,2669.5,2669.4,0.74912]
[1739753745549,0.5681,2669.7,2669.4,0.74912]
[1739753745851,0.74908,2669.6,2669.5,0.74909]
[1739753746246,0.5681,2669.7,2669.6,0.74906]
[1739753746746,0.5681,2669.7,2669.3,0.5439]
[1739753746946,0.7491,2669.5,2669.4,0.74911]
[1739753747342,0.74908,2669.6,2669.5,0.74908]
[1739753748948,3.2078,2669.8,2669.3,0.5439]
[1739753749151,0.74905,2669.7,2669.6,0.74905]
[1739753749751,3.2078,2669.8,2669.6,0.74905]
[1739753750251,3.95682,2669.8,2669.7,0.74903]
[1739753750447,3.2078,2669.8,2669.7,0.74903]
[1739753751342,3.95681,2669.8,2669.7,0.74903]
[1739753751647,3.2078,2669.8,2669.7,0.74903]
[1739753751843,3.95682,2669.8,2669.7,0.74903]
[1739753753240,3.2078,2669.8,2669.3,4.52244514]
[1739753753444,3.2078,2669.8,2669.3,2.64960514]
[1739753753649,0.74905,2669.7,2669.6,0.74906]
[1739753755648,3.95682,2669.8,2669.7,0.74903]
[1739753755848,3.95681,2669.8,2669.7,0.74903]
[1739753756749,3.2078,2669.8,2669.7,0.74903]
[1739753757055,3.95901398,2669.8,2669.7,0.74903]
[1739753757647,3.21000398,2669.8,2669.7,0.74903]
[1739753758355,3.95901398,2669.8,2669.7,0.74903]
[1739753759653,3.21000398,2669.8,2669.7,0.74903]
[1739753761856,3.95901398,2669.8,2669.7,0.74903]
[1739753762057,3.95901398,2669.8,2669.7,1.30163]
[1739753762356,3.21000398,2669.8,2669.7,1.30163]
[1739753763055,3.95901398,2669.8,2669.7,1.30163]
[1739753763854,3.21000398,2669.8,2669.7,1.30163]
[1739753764057,3.95901398,2669.8,2669.7,1.30163]
[1739753764357,3.21000398,2669.8,2669.7,1.30163]
[1739753764550,3.21000398,2669.8,2669.3,5.63034523]
[1739753764753,3.95902398,2669.8,2669.7,0.74903]
[1739753765050,3.95902398,2669.8,2669.5,0.5656]
[1739753765249,3.95902398,2669.8,2669.7,0.74903]
[1739753765547,3.21000398,2669.8,2669.7,0.74903]
[1739753765949,3.21000398,2669.8,2669.7,1.34023]
[1739753766547,0.00220398,2669.8,2669.7,1.34023]
[1739753766746,3.2078,2670.1,2670.0,0.74895]
[1739753768158,3.95672,2670.1,2670.0,0.74895]
[1739753768455,3.95672,2670.1,2669.8,0.5784]
[1739753768754,3.2078,2670.1,2670.0,0.74895]
[1739753770657,0.5689,2670.3,2670.2,0.74889]
[1739753771354,0.5689,2670.3,2670.2,1.30489]
[1739753773850,1.31777,2670.3,2670.2,1.30489]
[1739753774055,0.5689,2670.3,2670.2,1.30489]
[1739753775458,1.31777,2670.3,2670.2,1.30489]
[1739753775651,0.5689,2670.3,2670.2,1.30489]
[1739753776050,1.31777,2670.3,2670.2,1.30489]
[1739753776454,0.5689,2670.3,2670.2,1.30489]
[1739753781267,1.31777,2670.3,2670.2,1.30489]
[1739753784060,0.5689,2670.3,2670.2,1.30489]
[1739753784462,1.31777,2670.3,2670.2,1.30489]
[1739753786271,0.5689,2670.3,2670.2,1.30489]
[1739753788862,1.31777,2670.3,2670.2,1.30489]
[1739753790571,0.5689,2670.3,2669.7,2.52381519]
[1739753790767,3.95679,2669.9,2669.8,0.749]
[1739753791067,3.95679,2669.9,2669.8,0.74901]
[1739753791261,3.2078,2669.9,2669.4,0.74911]
[1739753791462,3.2078,2669.5,2669.4,0.74911]
[1739753792167,3.2078,2669.5,2669.4,0.74912]
[1739753793965,3.2078,2669.5,2669.4,1.29042]
[1739753794165,3.2078,2669.5,2669.4,1.83732]
[1739753796676,5.6648,2670.0,2669.9,0.74898]
[1739753796975,0.74899,2669.9,2669.6,2.64824632]
[1739753797170,3.95676,2670.0,2669.8,0.74899]
[1739753797372,3.7676,2670.0,2669.9,0.74898]
[1739753797870,4.51655,2670.0,2669.9,0.74898]
[1739753798172,3.7676,2670.0,2669.9,0.74898]
[1739753799175,0.74899,2669.9,2669.7,1.32803]
[1739753799385,0.5506,2669.8,2669.7,1.32803]
[1739753799964,0.5506,2669.8,2669.7,0.579]
[1739753800175,1.29961,2669.8,2669.7,0.579]
[1739753800376,1.89151,2669.8,2669.7,1.32803]
[1739753800576,0.74903,2669.7,2669.5,1.29878]
[1739753800877,3.95683,2669.7,2669.6,0.74906]
[1739753801071,3.95683,2669.7,2669.5,1.29876]
[1739753801272,3.95683,2669.7,2669.5,0.5497]
[1739753801576,3.2078,2669.7,2669.6,0.74906]
[1739753804475,3.2078,2669.7,2669.4,0.5946]
[1739753804681,3.2078,2669.7,2669.6,0.74906]
[1739753808087,3.95686,2669.7,2669.5,0.74906]
[1739753808293,1.34106,2669.6,2669.5,0.74906]
[1739753808584,0.592,2669.6,2669.5,0.74906]
[1739753809390,1.34106,2669.6,2669.5,0.74906]
[1739753809687,0.592,2669.6,2669.5,0.74906]
[1739753809890,1.34106,2669.6,2669.5,0.74906]
[1739753810293,1.34108,2669.6,2669.5,0.74909]
[1739753810893,1.34108,2669.6,2669.4,0.5946]
[1739753810894,0.592,2669.6,2669.4,0.5946]
[1739753811094,0.7491,2669.5,2669.4,0.74911]
[1739753811483,0.592,2669.6,2669.5,0.74909]
[1739753811691,3.2078,2669.7,2669.3,0.5587]
[1739753811893,3.2078,2669.7,2669.6,0.74906]
[1739753813602,1.89151,2669.8,2669.4,0.5525]
[1739753813805,1.1425,2669.8,2669.7,0.74903]
[1739753814499,1.1425,2669.8,2669.6,0.74904]
[1739753814806,3.95684,2669.7,2669.6,0.74904]
[1739753815005,3.2078,2669.7,2669.6,0.74904]
[1739753815205,3.95683,2669.7,2669.6,0.74904]
[1739753815706,0.74908,2669.6,2669.4,0.5525]
[1739753815898,0.74908,2669.6,2669.4,0.74909]
[1739753816204,5.08041,2669.7,2669.2,0.75478894]
[1739753816399,3.95695,2669.3,2669.2,0.75479894]
[1739753817105,3.2078,2669.3,2669.2,0.75479894]
[1739753817605,0.5765,2669.5,2669.4,0.74912]
[1739753817901,3.2078,2669.6,2669.5,0.74909]
[1739753823304,3.2078,2669.6,2669.5,1.33959]
[1739753824000,3.2078,2669.6,2669.5,2.5248026]
[1739753824910,3.2078,2669.6,2669.5,1.33959]
[1739753825305,3.95686,2669.6,2669.5,1.33959]
[1739753825513,4.54806,2669.6,2669.5,0.5905]
[1739753826509,4.54806,2669.6,2669.5,1.33959]
[1739753827304,4.54806,2669.6,2669.5,0.5905]
[1739753830610,0.7491,2669.5,2669.3,1.1852126]
[1739753830813,0.74912,2669.4,2669.3,1.7262126]
[1739753831111,1.29262,2669.4,2669.3,2.4753426]
[1739753831504,1.29262,2669.4,2669.3,1.7262126]
[1739753831700,0.74915,2669.3,2669.2,1.32788894]
[1739753831909,0.599,2669.3,2669.2,1.32789894]
[1739753834012,3.8068,2669.3,2669.2,0.57872894]
[1739753834308,4.55595,2669.3,2669.2,0.00562894]
[1739753836515,4.55595,2669.3,2669.2,0.75479894]
[1739753836914,3.8068,2669.3,2669.2,0.75479894]
[1739753837304,4.55595,2669.3,2669.2,0.75479894]
[1739753837710,3.8068,2669.3,2669.2,0.75479894]
[1739753838216,4.55595,2669.3,2669.2,0.75479894]
[1739753838417,3.8068,2669.3,2669.2,0.75479894]
[1739753838716,4.55595,2669.3,2669.2,0.75479894]
[1739753839313,4.55595,2669.3,2669.2,0.00562894]
[1739753839513,4.55595,2669.3,2669.2,0.75479894]
[1739753840417,3.8068,2669.3,2669.2,0.75479894]
[1739753840815,3.8068,2669.3,2669.2,0.00562894]
[1739753841014,4.55595,2669.3,2669.2,0.00562894]
[1739753841518,3.8068,2669.3,2669.2,0.75479894]
[1739753842018,4.55595,2669.3,2669.2,0.75479894]
[1739753842618,4.55595,2669.3,2669.2,0.00562894]
[1739753847431,4.55595,2669.3,2669.2,0.75479894]
[1739753847733,3.8068,2669.3,2669.2,0.75479894]
[1739753849531,3.8068,2669.3,2669.2,1.33179894]
[1739753853232,4.55595,2669.3,2669.2,1.33179894]
[1739753853438,3.8068,2669.3,2669.2,1.33179894]
[1739753857141,4.55595,2669.3,2669.2,1.33179894]
[1739753857439,3.8068,2669.3,2669.2,1.33179894]
[1739753858342,4.55595,2669.3,2669.2,1.33179894]
[1739753858833,3.8068,2669.3,2669.2,1.33179894]
[1739753862741,4.55595,2669.3,2669.2,1.33179894]
[1739753864139,3.8068,2669.3,2669.2,1.33179894]